bitfinex/quotes_SOLUSD_20250414
["timestamp","ask_amount","ask_price","bid_price","bid_amount"]
[1744661467649,0.063,130.61,130.58,7.6581]
[1744661467853,16.48743821,130.61,130.58,7.6581]
[1744661468969,0.063,130.61,130.58,7.6581]
[1744661470578,0.063,130.61,130.57,24.08293821]
[1744661470579,16.48743821,130.61,130.57,24.08293821]
[1744661470766,16.42443821,130.58,130.52,20.7228]
[1744661470967,16.42443821,130.54,130.51,7.6622]
[1744661471583,16.42443821,130.55,130.51,43.24223821]
[1744661471877,16.42443821,130.56,130.52,16.42443821]
[1744661472489,16.42443821,130.56,130.53,7.661]
[1744661474089,16.42443821,130.56,130.51,26.8178]
[1744661474294,16.42443821,130.56,130.52,16.42443821]
[1744661474890,2.25374628,130.61,130.55,16.42443821]
[1744661474891,26.0,130.59,130.55,16.42443821]
[1744661475070,16.48743821,130.61,130.57,16.42443821]
[1744661475897,0.063,130.61,130.57,16.42443821]
[1744661476270,0.063,130.61,130.58,7.6581]
[1744661476885,16.42443821,130.6,130.57,7.6584]
[1744661477190,26.26162887,130.6,130.57,7.6584]
[1744661478578,26.26162887,130.58,130.51,1.6161]
[1744661478775,26.26162887,130.55,130.51,9.2782]
[1744661479280,26.26162887,130.55,130.51,35.53982887]
[1744661479975,26.0,130.57,130.52,26.26162887]
[1744661480175,26.26162887,130.56,130.52,26.26162887]
[1744661480994,52.26162887,130.57,130.53,7.661]
[1744661481190,52.26162887,130.57,130.53,33.92262887]
[1744661481375,26.26162887,130.59,130.55,26.26162887]
[1744661481577,26.26162887,130.6,130.56,26.26162887]
[1744661482095,80.863,130.61,130.58,26.26162887]
[1744661482272,0.063,130.61,130.59,26.26162887]
[1744661482469,0.063,130.61,130.58,26.26162887]
[1744661483786,0.063,130.61,130.57,26.26162887]
[1744661484298,26.32462887,130.61,130.57,26.26162887]
[1744661484791,33.98112887,130.61,130.57,26.26162887]
[1744661484997,26.26162887,130.58,130.53,33.92222887]
[1744661485179,26.26162887,130.55,130.52,7.6613]
[1744661486994,18.996972,130.61,130.51,35.53962887]
[1744661486995,10.94,130.57,130.51,35.53962887]
[1744661487194,26.26162887,130.55,130.51,7.6619]
[1744661487398,26.26162887,130.54,130.5,33.92412887]
[1744661487596,26.26162887,130.54,130.5,7.6625]
[1744661487774,26.26162887,130.54,130.5,33.92412887]
[1744661488097,26.26162887,130.56,130.51,26.26162887]
[1744661488399,26.26162887,130.56,130.52,7.6616]
[1744661488610,26.26162887,130.55,130.51,7.662]
[1744661488895,26.26162887,130.54,130.5,33.92412887]
[1744661489272,26.26162887,130.55,130.5,33.92412887]
[1744661490800,26.26162887,130.55,130.51,26.26162887]
[1744661491900,33.92102887,130.56,130.51,26.26162887]
[1744661492080,26.26162887,130.53,130.5,7.6625]
[1744661493806,26.26162887,130.55,130.51,26.26162887]
[1744661495200,26.26162887,130.55,130.51,33.92352887]
[1744661495800,37.20162887,130.57,130.53,26.26162887]
[1744661496105,10.94,130.57,130.53,26.26162887]
[1744661496274,37.20162887,130.57,130.53,26.26162887]
[1744661497301,37.20162887,130.57,130.53,33.92212887]
[1744661498001,44.86042887,130.57,130.53,7.6605]
[1744661498206,26.26162887,130.55,130.52,7.6614]
[1744661498505,26.26162887,130.56,130.52,7.6614]
[1744661500992,33.92102887,130.56,130.52,7.6614]
[1744661501297,26.26162887,130.55,130.51,33.92372887]
[1744661501993,33.92122887,130.56,130.51,33.92372887]
[1744661503206,24.08391328,130.56,130.51,16.42431328]
[1744661504114,24.08391328,130.56,130.52,16.42431328]
[1744661504302,24.08391328,130.56,130.52,24.08561328]
[1744661504910,16.42431328,130.56,130.52,24.08561328]
[1744661505111,97.28731328,130.59,130.55,16.42431328]
[1744661505419,0.063,130.59,130.58,16.56647485]
[1744661505601,0.063,130.59,130.58,35.64260842]
[1744661506101,0.063,130.59,130.58,37.18970842]
[1744661506407,0.063,130.61,130.6,0.14216157]
[1744661506596,0.063,130.61,130.6,42.27410842]
[1744661506989,0.063,130.66,130.6,58.6984217]
[1744661507195,0.063,130.66,130.63,26.36776899]
[1744661507861,0.063,130.66,130.63,45.44390256]
[1744661508115,0.063,130.66,130.63,47.01460256]
[1744661508621,0.063,130.66,130.63,54.66980256]
[1744661511092,0.063,130.66,130.64,0.14216157]
[1744661511293,0.063,130.66,130.65,32.99296899]
[1744661512521,0.063,130.66,130.65,14.42136157]
[1744661512698,0.063,130.66,130.65,40.64696899]
[1744661514327,0.063,130.66,130.65,6.76736157]
[1744661514823,0.063,130.66,130.65,14.42136157]
[1744661515534,0.063,130.66,130.65,40.64696899]
[1744661516530,0.063,130.66,130.65,59.72310256]
[1744661517029,0.0001,130.66,130.65,59.72310256]
[1744661518308,0.063,130.69,130.67,28.37819514]
[1744661518616,0.063,130.69,130.68,97.66950998]
[1744661519121,0.063,130.74,130.73,44.933972]
[1744661519328,0.063,130.74,130.73,71.15957942]
[1744661519634,0.063,130.74,130.73,0.14216157]
[1744661521325,0.063,130.74,130.73,34.01706899]
[1744661521531,0.063,130.74,130.73,54.60660256]
[1744661522328,0.063,130.74,130.73,7.79146157]
[1744661522537,0.063,130.74,130.73,34.01706899]
[1744661523233,0.063,130.74,130.73,0.14216157]
[1744661523538,0.063,130.74,130.73,26.36776899]
[1744661523723,0.063,130.74,130.72,26.36776899]
[1744661524223,26.22560742,130.73,130.68,7.79416157]
[1744661524431,26.22560742,130.72,130.68,7.79416157]
[1744661524821,26.22560742,130.7,130.66,9.2656]
[1744661525020,26.22560742,130.7,130.66,7.6531]
[1744661525226,26.22560742,130.67,130.63,0.14216157]
[1744661525428,26.22560742,130.67,130.63,7.6549]
[1744661525629,18.79181043,130.72,130.61,0.14216157]
[1744661525630,26.22560742,130.66,130.61,26.36776899]
[1744661525932,26.22560742,130.66,130.62,0.14216157]
[1744661526934,26.22560742,130.66,130.62,7.79776157]
[1744661527636,26.22560742,130.66,130.61,26.36776899]
[1744661527637,26.22560742,130.64,130.6,7.6568]
[1744661527839,26.22560742,130.63,130.6,0.14216157]
[1744661528038,26.22560742,130.62,130.59,0.14216157]
[1744661528216,26.22560742,130.62,130.58,7.6578]
[1744661528524,26.22560742,130.62,130.58,33.88340742]
[1744661528709,26.22560742,130.62,130.58,7.6578]
[1744661528910,26.22560742,130.62,130.58,33.88340742]
[1744661529537,26.22560742,130.63,130.58,33.88340742]
[1744661529741,26.22560742,130.63,130.59,26.22560742]
[1744661530328,26.22560742,130.63,130.58,33.88340742]
[1744661530943,26.22560742,130.62,130.58,33.88340742]
[1744661531242,26.22560742,130.6,130.56,26.22560742]
[1744661531539,26.22560742,130.58,130.54,26.22560742]
[1744661531845,26.22560742,130.58,130.54,0.14216157]
[1744661532024,26.22560742,130.62,130.52,7.86666157]
[1744661532025,26.22560742,130.56,130.52,7.86666157]
[1744661532744,26.22560742,130.56,130.52,34.09226899]
[1744661533641,26.22560742,130.58,130.53,26.22560742]
[1744661533945,26.22560742,130.58,130.54,26.22560742]
[1744661534829,10.92,130.59,130.57,7.6587]
[1744661535017,26.22560742,130.6,130.57,7.6587]
[1744661535221,26.22560742,130.6,130.56,33.88460742]
[1744661537452,7.6557,130.62,130.56,33.88460742]
[1744661537637,26.22560742,130.59,130.55,26.22560742]
[1744661537829,26.22560742,130.59,130.54,26.22560742]
[1744661538450,26.22560742,130.59,130.54,33.88600742]
[1744661541349,26.22560742,130.57,130.53,34.02856899]
[1744661541548,26.22560742,130.56,130.52,0.20516157]
[1744661541762,26.22560742,130.56,130.52,26.43076899]
[1744661542555,26.22560742,130.56,130.52,34.09236899]
[1744661544131,33.88450742,130.57,130.52,34.09236899]
[1744661544334,26.22560742,130.57,130.52,34.09236899]
[1744661544733,26.22560742,130.59,130.55,26.22560742]
[1744661544942,26.22560742,130.61,130.57,26.22560742]
[1744661545148,26.22560742,130.61,130.56,26.22560742]
[1744661546336,26.22560742,130.61,130.57,7.6587]
[1744661548160,26.22560742,130.59,130.54,26.36776899]
[1744661548460,26.22560742,130.56,130.52,26.43076899]
[1744661548657,26.22560742,130.56,130.52,34.09206899]
[1744661548845,26.22560742,130.57,130.52,34.09206899]
[1744661549761,19.1423,130.61,130.53,26.22560742]
[1744661549969,26.22560742,130.59,130.54,26.22560742]
[1744661550469,26.22560742,130.58,130.54,26.22560742]
[1744661551260,26.22560742,130.58,130.54,33.88580742]
[1744661551664,26.22560742,130.57,130.52,0.063]
[1744661551855,26.22560742,130.57,130.52,26.43076899]
[1744661552165,26.22560742,130.55,130.52,0.063]
[1744661554072,26.22560742,130.56,130.52,26.28860742]
[1744661555256,26.22560742,130.56,130.53,7.661]
[1744661556268,33.88460742,130.57,130.53,7.661]
[1744661557567,26.22560742,130.56,130.52,0.063]
[1744661557765,26.22560742,130.55,130.52,0.063]
[1744661558772,26.22560742,130.54,130.52,0.063]
[1744661561970,26.22560742,130.55,130.52,0.063]
[1744661563372,16.42660714,130.55,130.52,0.063]
[1744661564657,16.42660714,130.55,130.52,7.7246]
[1744661565373,24.08610714,130.56,130.52,7.7246]
[1744661565972,16.42660714,130.56,130.52,7.7246]
[1744661566169,27.34660714,130.58,130.53,16.42660714]
[1744661566768,16.42660714,130.57,130.52,24.15120714]
[1744661568375,24.08570714,130.57,130.52,24.15120714]
[1744661571487,26.7976,130.61,130.53,16.42660714]
[1744661571668,7.6563,130.61,130.56,16.42660714]
[1744661571984,18.5755,130.63,130.6,16.42660714]
[1744661572183,10.92,130.63,130.6,16.42660714]
[1744661572356,18.5752,130.63,130.6,16.42660714]
[1744661572557,18.5752,130.63,130.59,16.42660714]
[1744661573261,10.92,130.63,130.59,16.42660714]
[1744661573664,10.92,130.63,130.59,24.08350714]
[1744661575580,10.92,130.67,130.62,16.42660714]
[1744661575784,16.42660714,130.66,130.62,16.42660714]
[1744661575989,16.42660714,130.66,130.61,16.42660714]
[1744661576285,16.42660714,130.65,130.61,16.42660714]
[1744661576886,16.42660714,130.65,130.62,7.6557]
[1744661577683,16.42660714,130.66,130.62,7.6557]
[1744661577882,16.42660714,130.65,130.62,7.6557]
[1744661578485,16.42660714,130.66,130.62,7.6557]
[1744661579083,24.08000714,130.66,130.62,7.6557]
[1744661580089,16.42660714,130.66,130.62,7.6557]
[1744661581087,27.34660714,130.67,130.63,16.42660714]
[1744661581279,10.92,130.67,130.63,16.42660714]
[1744661583201,10.92,130.67,130.64,7.6546]
[1744661583889,42.00038381,130.72,130.66,16.42660714]
[1744661583890,7.6499,130.72,130.66,16.42660714]
[1744661584060,16.42660714,130.72,130.68,16.42660714]
[1744661584689,273.85620714,130.73,130.68,16.42660714]
[1744661585490,273.85620714,130.73,130.68,24.07850714]
[1744661585993,10.92,130.73,130.7,16.42660714]
[1744661586164,10.92,130.73,130.71,16.42660714]
[1744661586365,0.063,130.74,130.71,16.42660714]
[1744661587669,0.063,130.74,130.7,16.42660714]
[1744661588594,0.063,130.74,130.7,24.07720714]
[1744661591292,16.48960714,130.74,130.69,24.07800714]
[1744661591502,16.42660714,130.73,130.69,24.07800714]
[1744661591795,16.48960714,130.74,130.69,24.07800714]
[1744661592293,16.48960714,130.74,130.7,16.42660714]
[1744661592502,16.48960714,130.74,130.7,24.07750714]
[1744661592796,0.063,130.74,130.71,16.42660714]
[1744661593188,0.063,130.74,130.73,16.42660714]
[1744661594080,0.063,130.74,130.72,6.3177]
[1744661594081,0.063,130.74,130.72,22.74430714]
[1744661594976,0.063,130.74,130.73,16.42660714]
[1744661597095,0.063,130.74,130.73,44.53177914]
[1744661597297,0.063,130.74,130.73,60.95838628]
[1744661597477,0.063,130.74,130.73,61.24270942]
[1744661599281,0.063,130.74,130.73,44.81610228]
[1744661599483,0.063,130.74,130.73,25.73996871]
[1744661603600,0.063,130.74,130.68,27.46876871]
[1744661603601,16.48960714,130.74,130.69,18.06960714]
[1744661603983,16.48960714,130.74,130.69,9.2943]
[1744661604176,0.063,130.74,130.71,16.42660714]
[1744661604999,0.063,130.74,130.7,16.42660714]
[1744661605295,0.063,130.74,130.7,24.07760714]
[1744661605495,16.42660714,130.73,130.69,1.643]
[1744661605800,16.42660714,130.73,130.69,18.06960714]
[1744661606296,16.48960714,130.74,130.69,18.06960714]
[1744661606601,16.48960714,130.74,130.69,9.2946]
[1744661606803,16.48960714,130.74,130.69,25.72120714]
[1744661607181,24.13880714,130.74,130.69,25.72120714]
[1744661608207,7.7122,130.74,130.7,16.42660714]
[1744661608406,0.063,130.74,130.7,16.42660714]
[1744661609200,16.48960714,130.74,130.7,24.07740714]
[1744661609896,0.063,130.74,130.7,24.07740714]
[1744661616988,0.063,130.74,130.73,16.42660714]
[1744661618101,0.063,130.75,130.74,20.80219514]
[1744661618306,0.03,130.78,130.77,44.933972]
[1744661618503,10.963,130.85,130.77,77.92934785]
[1744661618701,10.963,130.85,130.79,51.92934785]
[1744661618898,10.963,130.85,130.79,59.57514785]
[1744661619104,35.03190714,130.85,130.79,24.21456871]
[1744661619302,16.42660714,130.83,130.79,16.42660714]
[1744661619694,16.42660714,130.84,130.79,16.42660714]
[1744661619888,16.42660714,130.84,130.79,24.07240714]
[1744661620111,27.38960714,130.85,130.79,24.21456871]
[1744661620426,35.03190714,130.85,130.79,24.21456871]
[1744661623309,16.42660714,130.82,130.78,16.42660714]
[1744661623512,16.42660714,130.82,130.77,16.42660714]
[1744661624496,7.6446,130.81,130.77,16.42660714]
[1744661624700,7.6446,130.81,130.77,24.07340714]
[1744661625098,7.6446,130.81,130.77,16.42660714]
[1744661625099,24.07120714,130.81,130.77,16.42660714]
[1744661626823,16.48960714,130.8,130.75,7.6479]
[1744661627017,16.48960714,130.8,130.75,16.42660714]
[1744661627018,16.42660714,130.79,130.75,16.42660714]
[1744661627219,16.42660714,130.78,130.74,24.07530714]
[1744661628126,7.6462,130.79,130.74,24.07530714]
[1744661628309,35.03500714,130.8,130.75,16.42660714]
[1744661629501,35.03490714,130.8,130.76,16.42660714]
[1744661630023,18.6083,130.8,130.77,16.42660714]
[1744661631019,18.6083,130.8,130.7,108.7851]
[1744661631020,16.42660714,130.78,130.7,108.7851]
[1744661631330,16.42660714,130.77,130.73,16.42660714]
[1744661631507,16.42660714,130.78,130.73,16.42660714]
[1744661632132,16.42660714,130.78,130.74,7.6487]
[1744661633005,24.07300714,130.78,130.74,24.07530714]
[1744661633205,23.66956548,130.78,130.74,24.07530714]
[1744661635448,23.66956548,130.78,130.73,24.07560714]
[1744661635930,23.66956548,130.78,130.74,16.42660714]
[1744661636098,24.07260714,130.79,130.75,16.42660714]
[1744661636730,24.07260714,130.79,130.74,16.42660714]
[1744661637124,24.07260714,130.79,130.75,7.6481]
[1744661639636,10.963,130.8,130.76,16.42660714]
[1744661639850,10.963,130.8,130.75,7.6481]
[1744661639851,10.963,130.8,130.77,16.42660714]
[1744661641039,18.6082,130.8,130.76,16.42660714]
[1744661641545,10.963,130.8,130.76,16.42660714]
[1744661642842,10.963,130.8,130.76,24.07360714]
[1744661643447,10.963,130.8,130.77,16.42660714]
[1744661644825,10.963,130.8,130.77,24.07350714]
[1744661645140,10.963,130.8,130.77,18.11827559]
[1744661646339,18.79181043,130.77,130.68,7.6522]
[1744661646542,10.47137559,130.73,130.68,7.6522]
[1744661646719,10.47137559,130.74,130.69,10.47137559]
[1744661646925,18.12027559,130.74,130.69,18.12257559]
[1744661648665,10.47137559,130.73,130.69,10.47137559]
[1744661648831,7.6489,130.74,130.7,10.47137559]
[1744661649033,28.99977559,130.75,130.7,10.47137559]
[1744661649336,16.3777172,130.74,130.69,7.6516]
[1744661649650,16.3777172,130.74,130.69,24.0293172]
[1744661650351,16.3777172,130.74,130.7,24.0286172]
[1744661650555,24.0264172,130.74,130.7,24.0286172]
[1744661651751,99.9149,130.79,130.72,16.3777172]
[1744661651965,16.3777172,130.76,130.72,16.3777172]
[1744661652453,16.3777172,130.77,130.72,16.3777172]
[1744661653459,24.0254172,130.76,130.72,16.3777172]
[1744661653752,24.0254172,130.76,130.69,7.6511]
[1744661653753,16.3777172,130.74,130.69,7.6511]
[1744661653933,16.3777172,130.74,130.69,24.0288172]
[1744661654135,16.3777172,130.73,130.69,24.0288172]
[1744661654350,16.3777172,130.73,130.69,16.3777172]
[1744661654529,16.3777172,130.72,130.68,24.0927172]
[1744661654726,16.3777172,130.73,130.68,24.0927172]
[1744661654954,26.7666,130.76,130.68,24.0927172]
[1744661654955,16.3777172,130.74,130.69,16.3777172]
[1744661655858,16.3777172,130.73,130.69,24.0291172]
[1744661660060,16.3777172,130.74,130.69,24.0291172]
[1744661661659,24.0269172,130.74,130.69,24.0291172]
[1744661661843,24.0269172,130.74,130.68,16.4407172]
[1744661661844,16.3777172,130.72,130.68,16.4407172]
[1744661662044,27.2577172,130.73,130.68,24.0927172]
[1744661662339,27.2577172,130.73,130.69,16.3777172]
[1744661663161,27.2577172,130.73,130.68,7.715]
[1744661663162,10.88,130.73,130.7,16.3777172]
[1744661663370,10.88,130.73,130.71,16.3777172]
[1744661663658,10.88,130.78,130.72,16.3777172]
[1744661663854,10.88,130.78,130.76,16.3777172]
[1744661665549,18.5265,130.78,130.76,16.3777172]
[1744661665956,18.5265,130.78,130.75,16.3777172]
[1744661666865,18.5265,130.78,130.74,16.3777172]
[1744661667062,34.9042172,130.78,130.74,16.3777172]
[1744661667957,18.5265,130.78,130.74,16.3777172]
[1744661670670,18.5265,130.78,130.75,16.3777172]
[1744661670853,10.88,130.78,130.75,16.3777172]
[1744661671346,10.88,130.78,130.75,10.47399253]
[1744661671551,18.5265,130.78,130.75,10.47399253]
[1744661672174,10.88,130.78,130.75,10.47399253]
[1744661674174,10.88,130.78,130.76,10.47399253]
[1744661675064,0.063,130.8,130.77,10.47399253]
[1744661676274,0.063,130.8,130.78,10.47399253]
[1744661678776,0.063,130.8,130.78,18.12039253]
[1744661678970,0.063,130.8,130.79,10.47399253]
[1744661679275,0.063,130.8,130.78,10.47399253]
[1744661686685,0.063,130.8,130.78,18.12039253]
[1744661686877,0.063,130.8,130.78,10.47399253]
[1744661687686,0.063,130.8,130.77,18.12069253]
[1744661688481,0.063,130.8,130.77,10.47399253]
[1744661688689,10.47399253,130.79,130.74,10.47399253]
[1744661688872,10.47399253,130.75,130.69,0.063]
[1744661689073,10.47399253,130.7,130.69,0.063]
[1744661691188,16.38845535,130.7,130.69,0.063]
[1744661693197,24.03955535,130.7,130.69,0.063]
[1744661693496,16.38845535,130.7,130.69,0.063]
[1744661693685,24.03955535,130.7,130.69,0.063]
[1744661696323,34.91955535,130.7,130.69,0.063]
[1744661697408,53.71136578,130.7,130.69,0.063]
[1744661699707,54.13785049,130.7,130.69,0.063]
[1744661700322,54.13785049,130.7,130.69,0.0001]
[1744661700632,26.0,130.66,130.64,0.063]
[1744661700832,27.24845535,130.65,130.64,0.063]
[1744661701827,46.46675049,130.65,130.64,0.063]
[1744661703109,46.46675049,130.65,130.63,0.063]
[1744661703110,18.79181043,130.64,130.63,0.063]
[1744661703304,35.18026578,130.64,130.63,0.063]
[1744661704427,10.86,130.65,130.63,0.063]
[1744661704733,24.04065535,130.68,130.64,16.38845535]
[1744661704907,16.38845535,130.67,130.63,0.063]
[1744661705107,7.6534,130.66,130.63,0.063]
[1744661705307,24.04155535,130.67,130.63,16.45145535]
[1744661706334,10.86,130.69,130.63,16.45145535]
[1744661706335,7.6525,130.68,130.64,16.38845535]
[1744661706511,24.04095535,130.68,130.63,16.45145535]
[1744661707039,24.04095535,130.68,130.63,24.10645535]
[1744661707225,24.04095535,130.68,130.64,16.38845535]
[1744661708314,24.04095535,130.68,130.64,24.04285535]
[1744661709039,16.38845535,130.67,130.63,16.45145535]
[1744661709428,24.04095535,130.68,130.63,16.45145535]
[1744661710439,24.04095535,130.68,130.63,24.10655535]
[1744661711331,34.90055535,130.69,130.64,24.04275535]
[1744661711551,18.5121,130.69,130.65,16.38845535]
[1744661711835,16.38845535,130.72,130.68,16.38845535]
[1744661712014,10.86,130.73,130.69,16.38845535]
[1744661712213,34.89795535,130.73,130.68,16.38845535]
[1744661712427,34.89795535,130.73,130.64,27.07512314]
[1744661712428,16.38845535,130.7,130.65,16.38845535]
[1744661712616,16.38845535,130.69,130.64,17.97825535]
[1744661712928,16.38845535,130.69,130.65,16.38845535]
[1744661713113,16.38845535,130.7,130.65,16.38845535]
[1744661713317,24.04005535,130.7,130.65,16.38845535]
[1744661714030,16.38845535,130.69,130.64,17.97825535]
[1744661714218,16.38845535,130.69,130.64,1.5898]
[1744661714418,16.38845535,130.69,130.65,16.38845535]
[1744661714633,7.6507,130.71,130.67,16.38845535]
[1744661715636,7.6502,130.72,130.68,16.38845535]
[1744661715841,18.5096,130.73,130.7,16.38845535]
[1744661716038,18.5096,130.73,130.69,16.38845535]
[1744661716039,34.89805535,130.73,130.69,16.38845535]
[1744661716635,34.89805535,130.73,130.68,16.38845535]
[1744661716848,16.38845535,130.69,130.64,1.5898]
[1744661717014,16.38845535,130.69,130.64,25.63265535]
[1744661717212,16.38845535,130.69,130.65,16.38845535]
[1744661717549,7.6522,130.68,130.64,17.97825535]
[1744661718013,7.6522,130.68,130.65,16.38845535]
[1744661718419,7.6522,130.68,130.64,17.97825535]
[1744661719719,16.38845535,130.69,130.65,16.38845535]
[1744661720825,16.38845535,130.69,130.64,17.97825535]
[1744661721027,16.38845535,130.69,130.65,16.38845535]
[1744661721226,16.38845535,130.69,130.64,17.97825535]
[1744661721754,7.6522,130.68,130.64,17.97825535]
[1744661723150,16.38845535,130.68,130.64,17.97825535]
[1744661723747,16.38845535,130.67,130.63,6.7033]
[1744661723951,16.38845535,130.65,130.63,0.063]
[1744661724259,16.38845535,130.64,130.63,0.063]
[1744661724454,16.38845535,130.65,130.63,0.063]
[1744661724646,16.38845535,130.69,130.64,16.38845535]
[1744661724848,34.89955535,130.7,130.65,16.38845535]
[1744661725035,16.38845535,130.69,130.65,16.38845535]
[1744661725235,16.38845535,130.68,130.64,16.38845535]
[1744661725449,7.6528,130.67,130.64,16.38845535]
[1744661725649,16.38845535,130.65,130.63,0.063]
[1744661727754,7.6546,130.64,130.63,0.063]
[1744661729268,24.04305535,130.64,130.63,0.063]
[1744661733036,18.5141,130.65,130.63,0.063]
[1744661733740,34.90255535,130.65,130.63,0.063]
[1744661734342,18.5141,130.65,130.63,0.063]
[1744661734576,34.90255535,130.65,130.63,0.063]
[1744661734860,18.5141,130.65,130.63,0.063]
[1744661736067,16.38845535,130.64,130.63,0.063]
[1744661736370,24.04305535,130.64,130.63,0.063]
[1744661737059,34.90255535,130.65,130.63,0.063]
[1744661737245,10.86,130.65,130.63,0.063]
[1744661737958,18.514,130.65,130.63,0.063]
[1744661738340,34.90245535,130.65,130.63,0.063]
[1744661738860,16.38845535,130.64,130.63,0.063]
[1744661740260,24.04305535,130.64,130.63,0.063]
[1744661744293,26.0,130.62,130.61,0.063]
[1744661744461,26.0,130.62,130.59,0.063]
[1744661744462,26.0,130.6,130.59,0.063]
[1744661744769,53.24845535,130.6,130.59,0.063]
[1744661746663,60.90535535,130.6,130.59,0.063]
[1744661754560,44.5169,130.6,130.59,0.063]
[1744661754774,60.90535535,130.6,130.59,0.063]
[1744661760397,18.64964886,130.59,130.58,0.063]
[1744661760571,0.56864628,130.58,130.57,0.0001]
[1744661760769,16.95710163,130.58,130.57,0.0001]
[1744661760971,35.03810421,130.58,130.57,0.0001]
[1744661761162,16.38845535,130.58,130.57,0.0001]
[1744661762488,24.04655535,130.58,130.57,0.0001]
[1744661763177,43.26485049,130.58,130.57,0.0001]
[1744661764574,42.69620421,130.58,130.57,0.0001]
[1744661767288,7.6581,130.58,130.57,0.0001]
[1744661767493,7.6552,130.63,130.57,16.38855535]
[1744661767683,7.6847,130.64,130.6,16.38845535]
[1744661767990,7.6847,130.64,130.6,17.98715535]
[1744661768774,24.07315535,130.64,130.6,17.98715535]
[1744661768982,16.38845535,130.63,130.6,1.5987]
[1744661770579,7.6557,130.62,130.6,1.5987]
[1744661772412,16.38845535,130.61,130.57,1.5417]
[1744661772615,24.04535535,130.6,130.57,1.5417]
[1744661773119,34.90535535,130.6,130.57,1.5417]
[1744661774082,16.38845535,130.59,130.57,1.5417]
[1744661774503,16.38845535,130.58,130.57,0.0001]
[1744661774701,24.04655535,130.58,130.57,0.0001]
[1744661776506,42.69620421,130.58,130.57,0.0001]
[1744661776716,43.26485049,130.58,130.57,0.0001]
[1744661777314,24.04655535,130.58,130.57,0.0001]
[1744661779231,42.69620421,130.58,130.57,0.0001]
[1744661780221,24.04655535,130.58,130.57,0.0001]
[1744661787635,10.86,130.62,130.57,16.38855535]
[1744661787838,10.86,130.62,130.6,16.38845535]
[1744661788138,7.6849,130.64,130.61,16.38845535]
[1744661788441,7.6849,130.64,130.6,16.38845535]
[1744661788639,16.38845535,130.63,130.58,22.97825535]
[1744661788809,16.38845535,130.59,130.57,0.0001]
[1744661789020,16.38845535,130.58,130.57,0.0001]
[1744661791451,24.04655535,130.58,130.57,0.0001]
[1744661794862,42.69620421,130.58,130.57,0.0001]
[1744661795024,42.69620421,130.58,130.54,0.063]
[1744661795025,44.64964886,130.56,130.54,0.063]
[1744661795349,44.64964886,130.56,130.51,0.063]
[1744661795350,52.31064886,130.53,130.51,0.063]
[1744661795559,62.28655956,130.52,130.5,0.063]
[1744661795736,32.7769107,130.51,130.5,0.063]
[1744661795933,51.99520584,130.51,130.5,0.0001]
[1744661796137,18.64964886,130.49,130.47,0.03]
[1744661796335,44.64964886,130.47,130.46,0.03]
[1744661796541,71.89810421,130.47,130.46,0.03]
[1744661797537,79.56260421,130.47,130.46,0.03]
[1744661798965,53.24845535,130.47,130.46,0.03]
[1744661799562,60.91295535,130.47,130.46,0.03]
[1744661800841,53.24845535,130.47,130.46,0.03]
[1744661801668,60.91295535,130.47,130.46,0.03]
[1744661801833,79.56260421,130.47,130.46,0.03]
[1744661802035,60.91295535,130.47,130.46,0.03]
[1744661802787,79.56260421,130.47,130.46,0.03]
[1744661803058,80.13125049,130.47,130.46,0.03]
[1744661803962,18.64964886,130.46,130.45,0.03]
[1744661804163,35.03810421,130.46,130.45,0.03]
[1744661805072,42.70320421,130.46,130.45,0.03]
[1744661806774,43.27185049,130.46,130.44,0.03]
[1744661806975,16.95710163,130.45,130.44,0.03]
[1744661809475,24.62280163,130.45,130.44,0.03]
[1744661811175,0.56864628,130.43,130.37,6.4651]
[1744661811354,16.38845535,130.4,130.37,6.4651]
[1744661811557,29.50964886,130.42,130.37,6.4651]
[1744661811558,24.05775535,130.39,130.37,6.4651]
[1744661811747,24.05735535,130.4,130.37,6.4651]
[1744661811955,16.38845535,130.4,130.37,6.4651]
[1744661812681,27.24845535,130.42,130.37,30.52395535]
[1744661812853,10.86,130.42,130.38,16.38845535]
[1744661813053,27.24845535,130.42,130.38,16.38845535]
[1744661813473,27.24845535,130.42,130.37,30.52395535]